bitfinex/quotes_SOLUSD_20230105
["timestamp","ask_amount","ask_price","bid_price","bid_amount"]
[1672922418918,302.48,13.289,13.282,1.6782]
[1672922419315,20.0,13.288,13.273,56.55]
[1672922419524,20.0,13.285,13.274,20.0]
[1672922420269,20.0,13.285,13.275,78.95737149]
[1672922420691,20.0,13.285,13.276,22.41737149]
[1672922428818,343.1338,13.286,13.276,22.41737149]
[1672922429880,20.0,13.285,13.276,22.41737149]
[1672922430379,117.1338,13.286,13.277,56.53]
[1672922430817,117.1338,13.286,13.278,22.41737149]
[1672922443330,117.1338,13.286,13.275,56.54]
[1672922443537,117.1338,13.286,13.276,39.41737149]
[1672922443745,117.1338,13.286,13.277,76.53]
[1672922443936,117.1338,13.286,13.277,98.94737149]
[1672922444143,117.1338,13.286,13.278,22.41737149]
[1672922449523,119.3167,13.287,13.278,22.41737149]
[1672922463328,119.3167,13.287,13.276,65.73470466]
[1672922463513,119.3167,13.287,13.277,22.41737149]
[1672922464982,20.0,13.286,13.277,22.41737149]
[1672922465949,139.6252,13.286,13.277,22.41737149]
[1672922471099,20.0,13.284,13.277,22.41737149]
[1672922474454,17.0,13.283,13.277,22.41737149]
[1672922481072,17.0,13.284,13.277,22.41737149]
[1672922482859,20.0,13.283,13.274,20.0]
[1672922483068,20.0,13.281,13.274,20.0]
[1672922483290,20.0,13.281,13.273,20.0]
[1672922483483,20.0,13.279,13.273,20.0]
[1672922483906,17.0,13.278,13.273,20.0]
[1672922489168,17.0,13.278,13.274,22.41737149]
[1672922489397,20.0,13.282,13.275,20.0]
[1672922489592,17.0,13.281,13.275,20.0]
[1672922489789,17.0,13.281,13.276,22.41737149]
[1672922492104,37.0,13.282,13.276,22.41737149]
[1672922492586,17.0,13.282,13.276,22.41737149]
[1672922493077,17.0,13.283,13.276,22.41737149]
[1672922495173,73.51,13.283,13.27,48.73470466]
[1672922495379,6.4,13.28,13.26,6.47]
[1672922495598,475.23215887,13.279,13.262,48.73470466]
[1672922495912,310.04065887,13.277,13.263,20.0]
[1672922496121,84.04065887,13.275,13.264,56.59]
[1672922496330,20.0,13.274,13.264,48.73470466]
[1672922496521,84.04065887,13.272,13.265,105.31470466]
[1672922496733,84.04065887,13.273,13.265,48.73470466]
[1672922497602,84.04065887,13.27,13.261,56.6]
[1672922498416,84.04065887,13.27,13.261,105.33470466]
[1672922498625,84.04065887,13.27,13.261,56.6]
[1672922499598,84.04065887,13.27,13.262,20.0]
[1672922499798,20.0,13.272,13.263,56.59]
[1672922500119,101.04065887,13.271,13.264,20.0]
[1672922500322,84.04065887,13.269,13.264,20.0]
[1672922500636,84.04065887,13.269,13.262,20.0]
[1672922502423,84.04065887,13.27,13.262,20.0]
[1672922502635,84.04065887,13.27,13.263,56.59]
[1672922502840,84.04065887,13.27,13.264,20.0]
[1672922503473,84.04065887,13.27,13.262,20.0]
[1672922505890,17.0,13.269,13.262,20.0]
[1672922506108,84.04065887,13.268,13.262,20.0]
[1672922509580,20.0,13.265,13.259,20.0]
[1672922509889,84.04065887,13.264,13.259,20.0]
[1672922510394,84.04065887,13.266,13.259,20.0]
[1672922510606,84.04065887,13.264,13.257,20.0]
[1672922510810,84.04065887,13.266,13.258,56.61]
[1672922511033,84.04065887,13.266,13.252,20.0]
[1672922511034,84.04065887,13.264,13.252,20.0]
[1672922511244,140.63065887,13.264,13.253,20.0]
[1672922511456,84.04065887,13.264,13.252,20.0]
[1672922511689,84.04065887,13.264,13.253,20.29]
[1672922512919,84.04065887,13.264,13.255,20.0]
[1672922513558,84.04065887,13.264,13.254,20.0]
[1672922514617,84.04065887,13.264,13.255,20.0]
[1672922514827,84.04065887,13.264,13.256,56.62]
[1672922515038,84.04065887,13.271,13.257,40.0]
[1672922515233,84.04065887,13.271,13.26,6.38]
[1672922515571,84.04065887,13.271,13.262,20.0]
[1672922515776,84.04065887,13.271,13.263,20.0]
[1672922515987,116.763,13.274,13.263,20.0]
[1672922517117,116.763,13.274,13.262,20.0]
[1672922521768,116.763,13.274,13.261,40.0]
[1672922522197,116.763,13.274,13.261,91.3070628]
[1672922523557,116.763,13.274,13.261,134.02672252]
[1672922523763,116.763,13.274,13.263,20.0]
[1672922523978,116.763,13.274,13.264,20.0]
[1672922524290,116.763,13.274,13.264,71.3070628]
[1672922524505,116.763,13.274,13.265,20.0]
[1672922524905,56.53,13.278,13.265,20.0]
[1672922525125,168.9069,13.278,13.265,20.0]
[1672922528171,168.9069,13.278,13.266,20.0]
[1672922528606,168.9069,13.278,13.265,51.3070628]
[1672922530915,168.9069,13.278,13.266,20.0]
[1672922531323,168.9069,13.278,13.266,71.3070628]
[1672922531744,168.9069,13.278,13.266,51.3070628]
[1672922532175,20.0,13.277,13.266,51.3070628]
[1672922537223,112.3769,13.278,13.266,51.3070628]
[1672922542481,20.0,13.277,13.266,51.3070628]
[1672922546257,20.0,13.277,13.265,56.58]
[1672922550468,338.3769,13.278,13.265,56.58]
[1672922550654,20.0,13.277,13.265,56.58]
[1672922551077,20.0,13.277,13.265,107.8870628]
[1672922578553,20.0,13.277,13.265,107.76922245]
[1672922586036,20.0,13.275,13.265,107.76922245]
[1672922586350,17.0,13.274,13.265,107.76922245]
[1672922588760,16.8966584,13.274,13.265,107.76922245]
[1672922592467,20.0,13.273,13.265,56.46215965]
[1672922592652,298.86319945,13.272,13.265,56.46215965]
[1672922592962,17.0,13.271,13.265,56.46215965]
[1672922593379,16.8966584,13.274,13.265,56.46215965]
[1672922593589,20.0,13.274,13.265,56.46215965]
[1672922593807,17.0,13.273,13.265,56.46215965]
[1672922597396,20.0,13.276,13.265,56.46215965]
[1672922599832,226.0,13.277,13.265,56.46215965]
[1672922601288,112.3769,13.278,13.265,56.46215965]
[1672922602026,112.3769,13.278,13.265,172.65665965]
[1672922602442,112.3769,13.278,13.265,116.1945]
[1672922603154,20.0,13.277,13.265,116.1945]
[1672922603689,20.0,13.277,13.266,56.58]
[1672922605793,20.0,13.277,13.265,116.1945]
[1672922606421,112.3769,13.278,13.266,56.58]
[1672922608111,20.0,13.277,13.266,56.58]
[1672922608422,20.0,13.277,13.265,116.1945]
[1672922611036,20.0,13.277,13.266,56.58]
[1672922611242,20.0,13.277,13.265,116.1945]
[1672922611453,20.0,13.277,13.261,56.6]
[1672922611674,86.30192976,13.277,13.262,20.0]
[1672922611878,246.0,13.275,13.262,20.0]
[1672922620823,20.0,13.274,13.261,56.6]
[1672922621140,6.44,13.27,13.26,56.61]
[1672922621452,6.44,13.27,13.253,20.0]
[1672922621453,20.0,13.266,13.259,56.61]
[1672922621661,45.37953164,13.265,13.259,56.61]
[1672922622272,45.37953164,13.266,13.259,56.61]
[1672922622498,20.0,13.267,13.259,56.61]
[1672922624506,26.44,13.27,13.259,56.61]
[1672922625866,6.44,13.27,13.259,56.61]
[1672922626188,226.0,13.271,13.259,56.61]
[1672922627652,20.0,13.269,13.259,56.61]
[1672922627862,45.11487113,13.268,13.259,56.61]
[1672922628696,45.11487113,13.269,13.259,56.61]
[1672922629235,20.0,13.27,13.259,56.61]
[1672922631005,17.0,13.269,13.259,56.61]
[1672922631214,226.0,13.271,13.26,20.0]
[1672922631529,116.8557,13.272,13.261,56.6]
[1672922631760,342.8557,13.272,13.261,56.6]
[1672922632892,342.8557,13.272,13.26,20.0]
[1672922633099,342.8557,13.272,13.261,56.6]
[1672922633311,20.0,13.271,13.26,56.61]
[1672922633627,17.0,13.27,13.26,56.61]
[1672922633837,17.0,13.27,13.255,42.41737149]
[1672922633838,17.0,13.27,13.259,56.61]
[1672922639013,342.8557,13.272,13.259,56.61]
[1672922639631,20.0,13.271,13.259,56.61]
[1672922640496,17.0,13.27,13.259,56.61]
[1672922641325,116.8557,13.272,13.259,56.61]
[1672922641519,119.5571,13.273,13.26,68.85737149]
[1672922641729,119.5571,13.273,13.262,20.0]
[1672922641954,119.5571,13.273,13.263,76.59]
[1672922642172,119.5571,13.273,13.264,20.0]
[1672922642363,119.5571,13.273,13.265,76.58]
[1672922649636,226.0,13.278,13.265,76.58]
[1672922649950,114.6732,13.277,13.266,20.0]
[1672922650137,114.6732,13.277,13.268,20.0]
[1672922650558,114.6732,13.277,13.268,42.41737149]
[1672922651930,114.6732,13.277,13.268,22.41737149]
[1672922660366,20.0,13.276,13.266,56.58]
[1672922660676,114.6732,13.277,13.266,78.99737149]
[1672922661817,20.0,13.276,13.266,56.58]
[1672922662037,20.0,13.276,13.265,132.344]
[1672922663505,340.6732,13.277,13.265,132.344]
[1672922663707,20.0,13.276,13.265,132.344]
[1672922665300,340.6732,13.277,13.265,132.344]
[1672922665502,340.6732,13.277,13.267,20.0]
[1672922666224,340.6732,13.277,13.266,56.58]
[1672922666666,340.6732,13.277,13.265,132.344]
[1672922666667,340.6732,13.277,13.265,188.924]
[1672922668340,340.6732,13.277,13.266,20.0]
[1672922668972,340.6732,13.277,13.265,188.924]
[1672922670441,340.6732,13.277,13.265,211.34137149]
[1672922670658,340.6732,13.277,13.265,154.76137149]
[1672922672527,20.0,13.276,13.265,154.76137149]
[1672922672970,20.0,13.276,13.265,132.344]
[1672922681079,20.0,13.276,13.266,56.58]
[1672922684752,340.6732,13.277,13.266,56.58]
[1672922685069,20.0,13.276,13.266,56.58]
[1672922689378,340.6732,13.277,13.266,56.58]
[1672922693556,20.0,13.276,13.265,132.344]
[1672922697994,340.6732,13.277,13.265,132.344]
[1672922698308,340.6732,13.277,13.266,76.58]
[1672922698495,340.6732,13.277,13.266,56.58]
[1672922708077,20.0,13.276,13.265,132.344]
[1672922708497,20.0,13.276,13.265,154.76137149]
[1672922712293,340.6732,13.277,13.266,56.58]
[1672922712715,340.6732,13.277,13.266,78.99737149]
[1672922713984,20.0,13.276,13.266,22.41737149]
[1672922715759,20.0,13.276,13.266,78.99737149]
[1672922716918,340.6732,13.277,13.266,78.99737149]
[1672922719894,340.6732,13.277,13.266,22.41737149]
[1672922724101,340.6732,13.277,13.266,78.99737149]
[1672922724280,114.6732,13.277,13.266,78.99737149]
[1672922731340,114.6732,13.277,13.268,20.0]
[1672922731666,114.6732,13.277,13.268,22.41737149]
[1672922732486,334.6615,13.279,13.268,22.41737149]
[1672922734702,20.0,13.278,13.268,22.41737149]
[1672922734917,20.0,13.278,13.265,188.924]
[1672922735117,20.0,13.276,13.265,132.344]
[1672922739455,20.0,13.276,13.266,56.58]
[1672922746614,340.8381,13.277,13.266,78.99737149]
[1672922747641,340.8381,13.277,13.266,22.41737149]
[1672922747642,20.0,13.276,13.266,22.41737149]
[1672922749337,20.0,13.276,13.265,132.344]
[1672922749727,20.0,13.276,13.265,20.0]
[1672922749938,20.0,13.276,13.263,20.0]
[1672922750363,20.0,13.276,13.264,22.41737149]
[1672922750571,20.0,13.276,13.265,20.0]
[1672922751653,20.0,13.276,13.259,56.61]
[1672922751654,246.0,13.274,13.259,56.61]
[1672922751865,6.41,13.27,13.252,56.64]
[1672922752057,232.41,13.27,13.257,22.41737149]
[1672922752266,226.0,13.266,13.257,22.41737149]
[1672922752497,20.0,13.265,13.252,56.64]
[1672922752706,20.0,13.265,13.253,22.41737149]
[1672922753021,20.0,13.265,13.254,56.63]
[1672922753212,364.7922,13.265,13.254,56.63]
[1672922753425,364.7922,13.265,13.255,22.41737149]
[1672922754597,364.7922,13.265,13.255,22.29995557]
[1672922757736,20.0,13.262,13.255,22.29995557]
[1672922761434,226.0,13.263,13.255,22.29995557]
[1672922761861,20.0,13.262,13.255,22.29995557]
[1672922762179,20.0,13.262,13.252,56.64]
[1672922762383,20.0,13.262,13.253,20.0]
[1672922763021,20.0,13.262,13.252,20.0]
[1672922763418,20.0,13.262,13.249,20.0]
[1672922763627,20.0,13.262,13.25,20.0]
[1672922764257,6.41,13.26,13.249,56.65]
[1672922764473,6.41,13.26,13.246,79.08737149]
[1672922764908,226.0,13.258,13.246,79.08737149]
[1672922765104,20.0,13.256,13.246,79.08737149]
[1672922765315,48.90955354,13.255,13.246,79.08737149]
[1672922766060,20.0,13.254,13.246,56.67]
[1672922766257,48.90955354,13.253,13.245,56.67]
[1672922766466,20.0,13.252,13.245,56.67]
[1672922766676,48.90955354,13.251,13.245,56.67]
[1672922768169,48.90955354,13.253,13.245,56.67]
[1672922770272,20.0,13.254,13.245,56.67]
[1672922770482,42.54679976,13.253,13.245,56.67]
[1672922770669,20.0,13.254,13.245,56.67]
[1672922771007,20.0,13.255,13.245,56.67]
[1672922771219,20.0,13.256,13.245,56.67]
[1672922771533,20.0,13.254,13.245,56.67]
[1672922772781,43.79042952,13.253,13.245,56.67]
[1672922773195,20.0,13.254,13.245,56.67]
[1672922773950,44.09275726,13.255,13.246,17.0]
[1672922778366,46.86789175,13.256,13.246,17.0]
[1672922778582,20.0,13.255,13.246,17.0]
[1672922779922,20.0,13.255,13.245,17.0]
[1672922780559,20.0,13.255,13.244,105.2434]
[1672922780770,20.0,13.255,13.245,20.0]
[1672922781960,20.0,13.255,13.246,17.0]
[1672922784882,269.75643977,13.252,13.246,17.0]
[1672922785073,20.0,13.251,13.246,17.0]
[1672922785726,20.0,13.249,13.246,17.0]
[1672922786579,20.0,13.251,13.246,17.0]
[1672922791311,20.0,13.251,13.245,20.0]
[1672922791670,20.0,13.251,13.246,20.0]
[1672922791825,20.0,13.251,13.242,20.0]
[1672922794993,20.0,13.251,13.243,17.0]
[1672922795185,20.0,13.251,13.244,20.0]
[1672922795390,20.0,13.251,13.245,17.0]
[1672922795599,20.0,13.251,13.246,20.0]
[1672922795829,20.0,13.251,13.247,17.0]
[1672922796331,246.0,13.251,13.247,17.0]
[1672922796771,20.0,13.25,13.246,20.0]
[1672922796989,20.0,13.25,13.241,20.0]
[1672922797303,20.0,13.25,13.241,58.77459189]
[1672922798264,20.0,13.25,13.241,20.0]
[1672922798995,20.0,13.25,13.242,17.0]
[1672922799212,20.0,13.25,13.243,20.0]
[1672922799427,20.0,13.25,13.244,17.0]
[1672922799835,20.0,13.25,13.245,20.0]
[1672922800048,9.0,13.251,13.246,17.0]
[1672922801192,235.0,13.252,13.246,17.0]
[1672922801405,20.0,13.25,13.246,17.0]
[1672922802458,20.0,13.25,13.246,7.3188]
[1672922802664,20.0,13.25,13.238,56.7]
[1672922802885,20.0,13.25,13.235,56.71]
[1672922802886,20.0,13.247,13.235,56.71]
[1672922803097,20.0,13.247,13.236,20.0]
[1672922803298,20.0,13.247,13.237,56.7]
[1672922803718,20.0,13.247,13.234,56.72]
[1672922804893,20.0,13.247,13.235,20.0]
[1672922805083,20.0,13.247,13.236,56.71]
[1672922806352,226.0,13.245,13.235,20.0]
[1672922806568,20.0,13.244,13.233,20.0]
[1672922806770,20.0,13.242,13.234,56.72]
[1672922806980,20.0,13.242,13.235,20.0]
[1672922807520,226.0,13.243,13.233,20.0]
[1672922807734,226.0,13.243,13.234,73.72]
[1672922807941,226.0,13.243,13.235,20.0]
[1672922808142,20.0,13.242,13.235,20.0]
[1672922808676,20.0,13.242,13.232,20.0]
[1672922809078,20.0,13.242,13.233,56.72]
[1672922809289,20.0,13.242,13.234,20.0]
[1672922810038,20.0,13.242,13.232,20.0]
[1672922810249,20.0,13.242,13.233,56.72]
[1672922810449,20.0,13.242,13.234,37.0]
[1672922810990,215.0,13.243,13.234,37.0]
[1672922811610,215.0,13.243,13.234,20.0]
[1672922811837,20.0,13.242,13.232,20.0]
[1672922812046,20.0,13.242,13.233,56.72]
[1672922812257,20.0,13.242,13.234,20.0]
[1672922812490,20.0,13.242,13.232,20.0]
[1672922813203,20.0,13.242,13.233,17.0]
[1672922813414,20.0,13.242,13.234,20.0]
[1672922813633,20.0,13.242,13.235,17.0]
[1672922813851,215.0,13.243,13.235,17.0]
[1672922814064,215.0,13.243,13.236,20.0]
[1672922814272,215.0,13.243,13.237,17.0]
[1672922815519,221.3876,13.244,13.237,17.0]
[1672922816059,447.3876,13.244,13.237,73.7]
[1672922816270,447.3876,13.244,13.237,17.0]
[1672922816483,447.3876,13.244,13.235,56.71]
[1672922816705,447.3876,13.244,13.236,20.0]
[1672922817620,447.3876,13.244,13.237,17.0]
[1672922819639,119.6845,13.251,13.238,22.41737149]
[1672922819848,119.6845,13.251,13.239,20.0]
[1672922820059,119.6845,13.251,13.241,20.0]
[1672922820259,119.6845,13.251,13.242,76.68]
[1672922820474,119.6845,13.251,13.243,20.0]
[1672922820789,345.6845,13.251,13.244,20.0]
[1672922821840,345.6845,13.251,13.245,17.0]
[1672922822162,6.44,13.25,13.246,20.0]
[1672922822470,226.0,13.254,13.247,17.0]
[1672922822686,20.0,13.253,13.247,17.0]
[1672922823615,20.0,13.253,13.246,20.0]
[1672922823824,20.0,13.25,13.239,56.7]
[1672922824031,26.45,13.25,13.238,56.7]
[1672922824245,20.0,13.248,13.238,22.41737149]
[1672922825082,20.0,13.246,13.238,22.41737149]
[1672922826039,20.0,13.246,13.239,17.0]
[1672922829513,226.0,13.247,13.239,17.0]
[1672922830769,20.0,13.246,13.239,17.0]
[1672922834439,20.0,13.246,13.236,22.41737149]
[1672922836540,20.0,13.246,13.233,56.72]
[1672922836751,20.0,13.246,13.234,20.0]
[1672922836961,20.0,13.246,13.235,56.71]
[1672922837393,20.0,13.246,13.236,20.0]
[1672922837607,20.0,13.246,13.236,42.41737149]
[1672922837820,20.0,13.246,13.237,17.0]
[1672922838987,226.0,13.247,13.237,17.0]
[1672922839182,20.0,13.246,13.237,17.0]
[1672922841594,20.0,13.246,13.236,20.0]
[1672922841814,20.0,13.246,13.234,20.0]
[1672922842012,20.0,13.246,13.235,56.71]
[1672922842342,20.0,13.246,13.236,20.0]
[1672922842963,20.0,13.246,13.237,17.0]
[1672922843175,20.0,13.246,13.236,17.0]
[1672922844752,226.0,13.247,13.236,17.0]
[1672922845190,20.0,13.246,13.236,39.41737149]
[1672922847484,20.0,13.246,13.236,96.12737149]
[1672922848439,226.0,13.247,13.236,96.12737149]
[1672922849480,116.7301,13.248,13.237,20.0]
[1672922849689,116.7301,13.248,13.239,20.0]
[1672922849909,342.7301,13.248,13.24,17.0]
[1672922850119,342.7301,13.248,13.24,39.41737149]
[1672922850333,342.7301,13.248,13.241,22.41737149]
[1672922850551,342.7301,13.248,13.242,17.0]
[1672922852025,226.0,13.25,13.243,20.0]
[1672922852215,226.0,13.25,13.244,17.0]
[1672922852420,226.0,13.25,13.245,20.0]
[1672922852636,226.0,13.253,13.246,17.0]
[1672922859056,226.0,13.253,13.247,22.41737149]
[1672922859392,226.0,13.253,13.248,37.0]
[1672922859713,226.0,13.253,13.249,22.41737149]
[1672922859901,226.0,13.257,13.25,17.0]
[1672922860339,226.0,13.257,13.25,39.41737149]
[1672922861290,20.0,13.256,13.25,39.41737149]
[1672922861596,20.0,13.256,13.25,17.0]
[1672922862438,226.0,13.257,13.25,17.0]
[1672922864860,6.48,13.26,13.25,17.0]
[1672922865049,6.48,13.26,13.25,39.41737149]
[1672922865998,26.48,13.26,13.25,39.41737149]
[1672922867801,6.48,13.26,13.25,39.41737149]
[1672922870948,226.0,13.262,13.251,20.0]
[1672922871177,226.0,13.263,13.253,20.0]
[1672922871488,226.0,13.263,13.254,93.63]
[1672922871807,226.0,13.263,13.254,116.04737149]
[1672922872020,226.0,13.263,13.255,22.41737149]
[1672922872533,226.0,13.263,13.256,37.0]
[1672922873785,341.661,13.265,13.256,59.41737149]
[1672922874435,113.852,13.268,13.256,59.41737149]
[1672922874751,226.0,13.267,13.257,56.62]
[1672922874947,20.0,13.266,13.258,17.0]
[1672922875696,226.0,13.267,13.258,17.0]
[1672922876523,20.0,13.266,13.258,17.0]
[1672922878851,226.0,13.267,13.258,17.0]
[1672922879066,226.0,13.267,13.258,39.41737149]
[1672922881069,20.0,13.266,13.258,39.41737149]
[1672922881257,282.57,13.269,13.258,39.41737149]
[1672922881466,226.0,13.269,13.258,39.41737149]
[1672922882318,232.46,13.27,13.258,39.41737149]
[1672922882727,20.0,13.269,13.258,39.41737149]
[1672922883892,232.46,13.27,13.258,39.41737149]
[1672922884117,232.46,13.27,13.26,20.0]
[1672922884118,6.46,13.27,13.26,20.0]
[1672922884331,6.46,13.27,13.261,17.0]
[1672922884520,6.46,13.27,13.261,39.41737149]
[1672922884734,6.46,13.27,13.262,22.41737149]
[1672922884942,6.46,13.27,13.263,17.0]
[1672922885364,6.46,13.27,13.263,39.41737149]
[1672922889879,345.5231,13.273,13.264,96.59]
[1672922890098,226.0,13.273,13.265,17.0]
[1672922890645,226.0,13.273,13.266,20.0]
[1672922890855,226.0,13.273,13.267,17.0]
[1672922891081,246.0,13.276,13.267,17.0]
[1672922894429,226.0,13.274,13.259,56.61]
[1672922894650,6.46,13.27,13.258,56.61]
[1672922894851,6.46,13.27,13.251,116.1417]
[1672922894852,20.0,13.269,13.253,56.64]
[1672922895065,226.0,13.268,13.254,20.0]
[1672922895260,20.0,13.267,13.256,20.0]
[1672922895471,20.0,13.267,13.257,56.62]
[1672922895688,226.0,13.268,13.257,56.62]
[1672922896323,226.0,13.268,13.257,79.03737149]
[1672922896946,226.0,13.268,13.258,17.0]
[1672922897371,226.0,13.268,13.258,39.41737149]
[1672922898642,226.0,13.271,13.259,76.61]
[1672922898849,334.6957,13.275,13.261,20.0]
[1672922899063,334.6957,13.275,13.262,93.6]
[1672922899257,334.6957,13.275,13.263,20.0]
[1672922899471,334.6957,13.275,13.264,93.59]
[1672922899898,334.6957,13.275,13.264,116.00737149]
[1672922900849,334.6957,13.275,13.264,59.41737149]
[1672922902851,20.0,13.274,13.264,59.41737149]
[1672922903258,334.6957,13.275,13.264,59.41737149]
[1672922906622,226.0,13.275,13.265,20.0]
[1672922906831,226.0,13.278,13.266,93.58]
[1672922907039,226.0,13.278,13.266,167.82155193]
[1672922907358,226.0,13.278,13.267,42.41737149]
[1672922907566,226.0,13.278,13.269,20.0]
[1672922907995,56.51,13.283,13.27,59.41737149]
[1672922907996,226.0,13.282,13.27,59.41737149]
[1672922908215,226.0,13.282,13.27,115.97737149]
[1672922908410,226.0,13.282,13.271,22.41737149]
[1672922908621,226.0,13.282,13.272,37.0]
[1672922909585,226.0,13.282,13.272,59.41737149]
[1672922910611,20.0,13.282,13.272,59.41737149]
[1672922911247,20.0,13.282,13.272,20.0]
[1672922911457,226.0,13.283,13.272,20.0]
[1672922911797,226.0,13.283,13.272,42.41737149]
[1672922911981,226.0,13.283,13.273,20.0]
[1672922912419,226.0,13.283,13.274,17.0]
[1672922912626,226.0,13.283,13.275,20.0]
[1672922912828,226.0,13.283,13.276,17.0]
[1672922913246,226.0,13.283,13.275,20.0]
[1672922913467,226.0,13.283,13.274,20.0]
[1672922914734,226.0,13.283,13.275,17.0]
[1672922914945,226.0,13.283,13.276,20.0]
[1672922915344,20.0,13.282,13.276,20.0]
[1672922915566,20.0,13.282,13.273,20.0]
[1672922915782,6.45,13.28,13.27,20.0]
[1672922915981,6.45,13.28,13.267,78.99737149]
[1672922916191,226.0,13.278,13.267,22.41737149]
[1672922916417,20.0,13.277,13.267,22.41737149]
[1672922917044,363.2029,13.277,13.267,22.41737149]
[1672922918842,343.2029,13.277,13.267,22.41737149]
[1672922919260,343.2029,13.277,13.268,17.0]
[1672922921571,343.2029,13.277,13.267,22.41737149]
[1672922922947,343.2029,13.277,13.268,17.0]
[1672922923132,20.0,13.276,13.268,17.0]
[1672922925774,343.2029,13.277,13.268,17.0]
[1672922929683,20.0,13.276,13.268,17.0]
[1672922930714,343.2029,13.277,13.268,17.0]
[1672922931021,20.0,13.276,13.268,17.0]
[1672922933465,343.2029,13.277,13.268,17.0]
[1672922934196,20.0,13.276,13.268,17.0]
[1672922938298,20.0,13.276,13.264,56.59]
[1672922938487,20.0,13.276,13.265,20.0]
[1672922939221,20.0,13.276,13.263,20.0]
[1672922939458,343.2029,13.277,13.264,73.59]
[1672922939651,343.2029,13.277,13.265,20.0]
[1672922939853,343.2029,13.277,13.266,17.0]
[1672922940062,20.0,13.276,13.266,17.0]
[1672922943322,56.53,13.279,13.268,20.0]
[1672922943655,20.0,13.289,13.268,20.0]
[1672922943656,226.0,13.281,13.269,115.98737149]
[1672922944061,226.0,13.281,13.271,20.0]
[1672922944280,246.0,13.283,13.272,37.0]
[1672922946816,246.0,13.283,13.273,22.41737149]
[1672922947015,246.0,13.283,13.274,37.0]
[1672922948370,226.0,13.283,13.274,37.0]
[1672922952059,226.0,13.283,13.274,59.41737149]
[1672922955123,110.3817,13.284,13.274,59.41737149]
[1672922961737,282.48,13.289,13.275,20.0]
[1672922961925,6.41,13.29,13.276,37.0]
[1672922962136,6.41,13.29,13.277,20.0]
[1672922962366,6.41,13.29,13.278,17.0]
[1672922962678,6.41,13.29,13.278,39.41737149]
[1672922962893,62.89,13.29,13.278,39.41737149]
[1672922963087,6.41,13.29,13.278,39.41737149]
[1672922963946,6.41,13.29,13.279,22.41737149]
[1672922964153,6.41,13.29,13.28,17.0]
[1672922964371,56.48,13.289,13.28,17.0]
[1672922964586,308.89,13.29,13.28,17.0]